[Event "*** Titled Tuesday Blitz"]
[Site "Chess.com"]
[Date "2020.11.24"]
[Round "2"]
[White "Nemsko"]
[Black "Rodalquilar"]
[Result "0-1"]
[WhiteElo "2357"]
[BlackElo "2659"]
[TimeControl "180+1"]
[EndTime "10:32:06 PST"]
[Termination "Rodalquilar won by resignation"]

1. e4 {[%clk 0:03:00.9]} 1... d5 {[%clk 0:03:00.2]} 2. exd5 {[%clk 0:03:00.5]}
2... Qxd5 {[%clk 0:03:01.1]} 3. Nc3 {[%clk 0:03:00.4]} 3... Qa5 {[%clk
0:03:01.3]} 4. Bc4 {[%clk 0:02:59.8]} 4... Nf6 {[%clk 0:03:01.4]} 5. d3 {[%clk
0:02:59.7]} 5... Bg4 {[%clk 0:03:01.1]} 6. f3 {[%clk 0:02:59.6]} 6... Be6 {[%clk
0:02:57.7]} 7. Bxe6 {[%clk 0:02:53.8]} 7... fxe6 {[%clk 0:02:57.9]} 8. Bd2
{[%clk 0:02:40.6]} 8... Nc6 {[%clk 0:02:57.3]} 9. Nge2 {[%clk 0:02:39.4]} 9...
e5 {[%clk 0:02:57]} 10. O-O {[%clk 0:02:34.7]} 10... e6 {[%clk 0:02:55.1]} 11.
Kh1 {[%clk 0:02:29.8]} 11... O-O-O {[%clk 0:02:54.7]} 12. a3 {[%clk 0:02:20.7]}
12... Nd4 {[%clk 0:02:50.4]} 13. Ne4 {[%clk 0:02:18.5]} 13... Qb6 {[%clk
0:02:49.3]} 14. Bc3 {[%clk 0:02:12.3]} 14... Nd5 {[%clk 0:02:45.4]} 15. Rb1
{[%clk 0:02:01.4]} 15... Ne3 {[%clk 0:02:45.1]} 16. Qd2 {[%clk 0:01:56.6]} 16...
Nxf1 {[%clk 0:02:42.6]} 17. Rxf1 {[%clk 0:01:57.5]} 17... Be7 {[%clk 0:02:41.2]}
18. b4 {[%clk 0:01:55.3]} 18... h6 {[%clk 0:02:40.3]} 19. Bb2 {[%clk 0:01:33.1]}
19... g5 {[%clk 0:02:36.6]} 20. N2g3 {[%clk 0:01:29.7]} 20... Rhf8 {[%clk
0:02:34.8]} 21. Nh5 {[%clk 0:01:28.1]} 21... Qc6 {[%clk 0:02:30.3]} 22. c3
{[%clk 0:01:22.1]} 22... Nf5 {[%clk 0:02:30.5]} 23. Qe2 {[%clk 0:01:14.7]} 23...
Rd7 {[%clk 0:02:13.2]} 24. Rd1 {[%clk 0:00:52.5]} 24... Rfd8 {[%clk 0:02:13]}
25. Nf2 {[%clk 0:00:42]} 25... Nh4 {[%clk 0:02:01.6]} 26. Ng3 {[%clk 0:00:34.4]}
26... Ng6 {[%clk 0:01:59.4]} 27. Qe3 {[%clk 0:00:21]} 27... Qb6 {[%clk
0:01:57.4]} 28. Qxb6 {[%clk 0:00:13.1]} 28... axb6 {[%clk 0:01:58.3]} 29. c4
{[%clk 0:00:13]} 29... Nf4 {[%clk 0:01:57.4]} 30. Bxe5 {[%clk 0:00:12.5]} 30...
Nxd3 {[%clk 0:01:57.5]} 31. Nxd3 {[%clk 0:00:10.9]} 31... Rxd3 {[%clk
0:01:58.4]} 32. Rxd3 {[%clk 0:00:11.3]} 32... Rxd3 {[%clk 0:01:58]} 33. h3
{[%clk 0:00:12.2]} 33... Bd6 {[%clk 0:01:54.8]} 34. Bxd6 {[%clk 0:00:12]} 34...
cxd6 {[%clk 0:01:55.3]} 35. Ne4 {[%clk 0:00:12.9]} 35... Kd7 {[%clk 0:01:54.7]}
36. Nf6+ {[%clk 0:00:12.9]} 36... Kc7 {[%clk 0:01:45.8]} 37. Ng8 {[%clk
0:00:10.8]} 37... h5 {[%clk 0:01:45.6]} 38. Nf6 {[%clk 0:00:09.4]} 38... Rxa3
{[%clk 0:01:39.9]} 39. Nxh5 {[%clk 0:00:09.1]} 39... Ra4 {[%clk 0:01:40.4]} 40.
Ng7 {[%clk 0:00:08.7]} 40... Kd7 {[%clk 0:01:40.4]} 41. Kh2 {[%clk 0:00:07.5]}
41... Rxb4 {[%clk 0:01:40.8]} 42. g3 {[%clk 0:00:07.1]} 42... Rxc4 {[%clk
0:01:41]} 43. h4 {[%clk 0:00:07.5]} 43... gxh4 {[%clk 0:01:41.4]} 44. gxh4
{[%clk 0:00:08.4]} 0-1

[Event "*** Titled Tuesday Blitz"]
[Site "Chess.com"]
[Date "2020.11.24"]
[Round "2"]
[White "Euwe1234"]
[Black "Margarita2907"]
[Result "1-0"]
[WhiteElo "2460"]
[BlackElo "2251"]
[TimeControl "180+1"]
[EndTime "10:32:09 PST"]
[Termination "Euwe1234 won by checkmate"]

1. e4 {[%clk 0:03:00.9]} 1... c5 {[%clk 0:02:59.5]} 2. Nf3 {[%clk 0:02:55.7]}
2... d6 {[%clk 0:02:59.2]} 3. d4 {[%clk 0:02:52.8]} 3... cxd4 {[%clk 0:03:00.1]}
4. Nxd4 {[%clk 0:02:53.7]} 4... Nf6 {[%clk 0:02:59.7]} 5. Nc3 {[%clk 0:02:52.1]}
5... a6 {[%clk 0:02:59.4]} 6. Bg5 {[%clk 0:02:52]} 6... Nbd7 {[%clk 0:02:58.5]}
7. f3 {[%clk 0:02:50.9]} 7... Qc7 {[%clk 0:02:53.2]} 8. Qd2 {[%clk 0:02:41.8]}
8... b5 {[%clk 0:02:39.1]} 9. a3 {[%clk 0:02:37]} 9... Bb7 {[%clk 0:02:38.8]}
10. O-O-O {[%clk 0:02:34.9]} 10... e6 {[%clk 0:02:35.9]} 11. Kb1 {[%clk
0:02:32.3]} 11... Be7 {[%clk 0:02:34.3]} 12. g4 {[%clk 0:02:29.2]} 12... O-O
{[%clk 0:02:29.8]} 13. h4 {[%clk 0:02:26.6]} 13... Ne5 {[%clk 0:02:11.3]} 14.
Bxf6 {[%clk 0:02:23.8]} 14... Bxf6 {[%clk 0:02:10.1]} 15. g5 {[%clk 0:02:23.7]}
15... Be7 {[%clk 0:02:09.8]} 16. h5 {[%clk 0:02:21.6]} 16... Nc4 {[%clk
0:02:06.2]} 17. Bxc4 {[%clk 0:02:19]} 17... Qxc4 {[%clk 0:02:05.3]} 18. Rhg1
{[%clk 0:02:12.6]} 18... d5 {[%clk 0:01:17.7]} 19. exd5 {[%clk 0:02:01.5]} 19...
Bxd5 {[%clk 0:01:14.1]} 20. Nf5 {[%clk 0:01:57.4]} 20... exf5 {[%clk 0:00:40.1]}
21. Nxd5 {[%clk 0:01:55.5]} 21... Bc5 {[%clk 0:00:37.4]} 22. Rg2 {[%clk
0:01:17.8]} 22... a5 {[%clk 0:00:25.4]} 23. g6 {[%clk 0:00:58.1]} 23... h6
{[%clk 0:00:23.8]} 24. Nf6+ {[%clk 0:00:53.2]} 24... Kh8 {[%clk 0:00:23]} 25.
Qxh6+ {[%clk 0:00:50.4]} 25... gxh6 {[%clk 0:00:23.2]} 26. g7# {[%clk
0:00:50.7]} 1-0

[Event "*** Titled Tuesday Blitz"]
[Site "Chess.com"]
[Date "2020.11.24"]
[Round "2"]
[White "ChronicUnhappiness"]
[Black "enriquebutti"]
[Result "1-0"]
[WhiteElo "2370"]
[BlackElo "1956"]
[TimeControl "180+1"]
[EndTime "10:32:10 PST"]
[Termination "ChronicUnhappiness won by resignation"]

1. c4 {[%clk 0:03:00.9]} 1... e5 {[%clk 0:02:59.5]} 2. Nc3 {[%clk 0:02:59.2]}
2... Nc6 {[%clk 0:02:59.2]} 3. Nf3 {[%clk 0:02:58.7]} 3... g6 {[%clk 0:02:58.4]}
4. d4 {[%clk 0:02:53.4]} 4... exd4 {[%clk 0:02:58.2]} 5. Nxd4 {[%clk 0:02:53.6]}
5... Bg7 {[%clk 0:02:57.8]} 6. Nxc6 {[%clk 0:02:53.8]} 6... bxc6 {[%clk
0:02:57.5]} 7. g3 {[%clk 0:02:54.2]} 7... Ne7 {[%clk 0:02:56.7]} 8. Bg2 {[%clk
0:02:54.6]} 8... O-O {[%clk 0:02:56.4]} 9. O-O {[%clk 0:02:54.8]} 9... Rb8
{[%clk 0:02:56.1]} 10. Qc2 {[%clk 0:02:37.9]} 10... d5 {[%clk 0:02:55.5]} 11.
Rd1 {[%clk 0:02:17.2]} 11... Be6 {[%clk 0:02:52.5]} 12. Na4 {[%clk 0:01:41.9]}
12... Rb4 {[%clk 0:02:47.2]} 13. cxd5 {[%clk 0:01:32.9]} 13... cxd5 {[%clk
0:02:42.1]} 14. Nc5 {[%clk 0:00:53.1]} 14... Rc4 {[%clk 0:02:22.7]} 15. Qxc4
{[%clk 0:00:49.7]} 15... dxc4 {[%clk 0:02:22.3]} 16. Rxd8 {[%clk 0:00:50.6]}
16... Rxd8 {[%clk 0:02:21.9]} 17. Bg5 {[%clk 0:00:50.8]} 17... Re8 {[%clk
0:02:12.2]} 18. Nxe6 {[%clk 0:00:49.4]} 18... fxe6 {[%clk 0:02:11.9]} 19. Rc1
{[%clk 0:00:46.8]} 19... Nd5 {[%clk 0:02:06.1]} 20. Rxc4 {[%clk 0:00:45]} 20...
Bxb2 {[%clk 0:02:05.2]} 21. e3 {[%clk 0:00:37.8]} 21... Nc3 {[%clk 0:01:57]} 22.
Rxc7 {[%clk 0:00:33.4]} 22... Nxa2 {[%clk 0:01:55.8]} 23. Rxa7 {[%clk
0:00:30.6]} 23... Nc3 {[%clk 0:01:53.7]} 24. Bc6 {[%clk 0:00:25.1]} 24... Rb8
{[%clk 0:01:50.1]} 25. Bd7 {[%clk 0:00:22.2]} 25... Nb5 {[%clk 0:01:38]} 26.
Bxe6+ {[%clk 0:00:20.8]} 26... Kh8 {[%clk 0:01:37.7]} 27. Rf7 {[%clk 0:00:16.1]}
27... Bg7 {[%clk 0:01:34.7]} 28. Bf6 {[%clk 0:00:16]} 28... Bxf6 {[%clk
0:01:33.4]} 29. Rxf6 {[%clk 0:00:16.9]} 29... Nc7 {[%clk 0:01:27.6]} 30. Bc4
{[%clk 0:00:15.1]} 30... Rb4 {[%clk 0:01:25.2]} 31. Rc6 {[%clk 0:00:15.1]} 31...
Ne8 {[%clk 0:01:23.4]} 32. Rc8 {[%clk 0:00:14]} 32... Kg7 {[%clk 0:01:23.1]} 33.
Rxe8 {[%clk 0:00:13.5]} 33... Rxc4 {[%clk 0:01:23.4]} 34. Re6 {[%clk 0:00:13.7]}
1-0

[Event "*** Titled Tuesday Blitz"]
[Site "Chess.com"]
[Date "2020.11.24"]
[Round "2"]
[White "guillembaches"]
[Black "pirulillo"]
[Result "1-0"]
[WhiteElo "2401"]
[BlackElo "2097"]
[TimeControl "180+1"]
[EndTime "10:32:11 PST"]
[Termination "guillembaches won by checkmate"]

1. e4 {[%clk 0:03:00.8]} 1... c5 {[%clk 0:02:59.3]} 2. Nf3 {[%clk 0:03:01.1]}
2... e6 {[%clk 0:02:59.4]} 3. c4 {[%clk 0:03:00.9]} 3... d6 {[%clk 0:02:56.5]}
4. Nc3 {[%clk 0:03:00.8]} 4... Nf6 {[%clk 0:02:56]} 5. Be2 {[%clk 0:03:00.7]}
5... Ke7 {[%clk 0:02:55.8]} 6. O-O {[%clk 0:03:00.3]} 6... Ke8 {[%clk
0:02:54.6]} 7. d4 {[%clk 0:02:58.4]} 7... cxd4 {[%clk 0:02:54.1]} 8. Nxd4 {[%clk
0:02:58.4]} 8... Be7 {[%clk 0:02:55]} 9. Be3 {[%clk 0:02:57.6]} 9... a6 {[%clk
0:02:55]} 10. f4 {[%clk 0:02:57.5]} 10... Nbd7 {[%clk 0:02:53.7]} 11. b4 {[%clk
0:02:54.6]} 11... Qc7 {[%clk 0:02:52.6]} 12. a3 {[%clk 0:02:54.2]} 12... b6
{[%clk 0:02:52.2]} 13. Rc1 {[%clk 0:02:54]} 13... Bb7 {[%clk 0:02:51.9]} 14. Qd3
{[%clk 0:02:53.9]} 14... g6 {[%clk 0:02:50.2]} 15. g4 {[%clk 0:02:51.7]} 15...
h5 {[%clk 0:02:46.1]} 16. h3 {[%clk 0:02:47.9]} 16... hxg4 {[%clk 0:02:43.7]}
17. hxg4 {[%clk 0:02:48.4]} 17... g5 {[%clk 0:02:39]} 18. f5 {[%clk 0:02:15.6]}
18... Ne5 {[%clk 0:02:37.3]} 19. Qc2 {[%clk 0:02:14.8]} 19... Nfxg4 {[%clk
0:02:32.6]} 20. Qd2 {[%clk 0:02:02.9]} 20... d5 {[%clk 0:02:25.7]} 21. cxd5
{[%clk 0:01:40.5]} 21... Nxe3 {[%clk 0:02:19.3]} 22. Ncb5 {[%clk 0:01:33.8]}
22... Nf3+ {[%clk 0:02:03]} 23. Bxf3 {[%clk 0:01:23.4]} 23... Qg3+ {[%clk
0:02:01.3]} 24. Bg2 {[%clk 0:01:23.7]} 24... Ng4 {[%clk 0:01:55.2]} 25. Nc7+
{[%clk 0:01:18.6]} 25... Kf8 {[%clk 0:01:53.9]} 26. Ncxe6+ {[%clk 0:00:52.5]}
26... fxe6 {[%clk 0:01:52.1]} 27. fxe6+ {[%clk 0:00:52.5]} 27... Ke8 {[%clk
0:01:49.8]} 28. Nf3 {[%clk 0:00:31.8]} 28... Bd6 {[%clk 0:01:31.3]} 29. Qxg5
{[%clk 0:00:26]} 29... Rh2 {[%clk 0:01:08.3]} 30. Qg8+ {[%clk 0:00:18.8]} 30...
Bf8 {[%clk 0:01:03.2]} 31. Qf7+ {[%clk 0:00:19]} 31... Kd8 {[%clk 0:01:00.9]}
32. Qd7# {[%clk 0:00:19.5]} 1-0

[Event "*** Titled Tuesday Blitz"]
[Site "Chess.com"]
[Date "2020.11.24"]
[Round "2"]
[White "TheCavemanChesss"]
[Black "Sueetin"]
[Result "0-1"]
[WhiteElo "2445"]
[BlackElo "2276"]
[TimeControl "180+1"]
[EndTime "10:32:12 PST"]
[Termination "Sueetin won by resignation"]

1. e4 {[%clk 0:03:00.9]} 1... c5 {[%clk 0:02:59.9]} 2. Nf3 {[%clk 0:03:00.8]}
2... e6 {[%clk 0:03:00.1]} 3. d4 {[%clk 0:03:01.2]} 3... cxd4 {[%clk 0:03:00.4]}
4. Nxd4 {[%clk 0:03:02.1]} 4... Nc6 {[%clk 0:03:00.5]} 5. Nc3 {[%clk 0:03:02.3]}
5... Qc7 {[%clk 0:03:01]} 6. Be3 {[%clk 0:03:02]} 6... a6 {[%clk 0:03:00.5]} 7.
Qf3 {[%clk 0:03:02.2]} 7... Nf6 {[%clk 0:02:39.4]} 8. O-O-O {[%clk 0:03:01.5]}
8... Ne5 {[%clk 0:02:36.1]} 9. Qg3 {[%clk 0:03:01.6]} 9... b5 {[%clk 0:02:31]}
10. a3 {[%clk 0:02:42.1]} 10... Bb7 {[%clk 0:02:28.2]} 11. Bxb5 {[%clk
0:02:33.6]} 11... Bxa3 {[%clk 0:01:30.5]} 12. Kb1 {[%clk 0:00:32.9]} 12... Bxb2
{[%clk 0:01:08.2]} 13. Kxb2 {[%clk 0:00:18.5]} 13... axb5 {[%clk 0:01:08]} 14.
Ndxb5 {[%clk 0:00:18.3]} 14... Nc4+ {[%clk 0:01:08.1]} 15. Kb1 {[%clk
0:00:18.8]} 15... Qa5 {[%clk 0:00:41.5]} 16. Nc7+ {[%clk 0:00:18.7]} 16... Kf8
{[%clk 0:00:36.3]} 17. Nxa8 {[%clk 0:00:18.3]} 17... Qb4+ {[%clk 0:00:30.9]} 0-1

[Event "*** Titled Tuesday Blitz"]
[Site "Chess.com"]
[Date "2020.11.24"]
[Round "2"]
[White "GigaQuparadze"]
[Black "Squirlolz"]
[Result "1-0"]
[WhiteElo "2845"]
[BlackElo "2521"]
[TimeControl "180+1"]
[EndTime "10:32:19 PST"]
[Termination "GigaQuparadze won by resignation"]

1. e4 {[%clk 0:03:00.9]} 1... e6 {[%clk 0:02:56]} 2. d4 {[%clk 0:03:00.6]} 2...
d5 {[%clk 0:02:56.4]} 3. Nd2 {[%clk 0:03:00.2]} 3... c5 {[%clk 0:02:55.3]} 4.
Ngf3 {[%clk 0:02:59.7]} 4... Nc6 {[%clk 0:02:51]} 5. exd5 {[%clk 0:02:58.9]}
5... exd5 {[%clk 0:02:51.9]} 6. Bb5 {[%clk 0:02:58.4]} 6... Bd6 {[%clk
0:02:48.8]} 7. dxc5 {[%clk 0:02:57.1]} 7... Bxc5 {[%clk 0:02:49.7]} 8. Nb3
{[%clk 0:02:56.8]} 8... Bd6 {[%clk 0:02:45.7]} 9. Nbd4 {[%clk 0:02:56.1]} 9...
Ne7 {[%clk 0:02:45.7]} 10. O-O {[%clk 0:02:56]} 10... O-O {[%clk 0:02:45.7]} 11.
c3 {[%clk 0:02:55.8]} 11... Bg4 {[%clk 0:02:44.7]} 12. Be2 {[%clk 0:02:52]}
12... Re8 {[%clk 0:02:43.4]} 13. h3 {[%clk 0:02:50.9]} 13... Bh5 {[%clk
0:02:43.7]} 14. Be3 {[%clk 0:02:49.9]} 14... a6 {[%clk 0:02:34]} 15. Nxc6 {[%clk
0:02:49.8]} 15... Nxc6 {[%clk 0:02:33.9]} 16. Nd4 {[%clk 0:02:46.4]} 16... Nxd4
{[%clk 0:01:56]} 17. Bxh5 {[%clk 0:02:45.3]} 17... Nf5 {[%clk 0:01:56.3]} 18.
Bd2 {[%clk 0:02:38.1]} 18... d4 {[%clk 0:01:46.3]} 19. Qf3 {[%clk 0:02:23.6]}
19... g6 {[%clk 0:01:23.2]} 20. Bg4 {[%clk 0:02:22.9]} 20... Re5 {[%clk
0:00:57.2]} 21. Bf4 {[%clk 0:02:16.7]} 21... Rb5 {[%clk 0:00:55.5]} 22. Rad1
{[%clk 0:02:10.2]} 22... Bxf4 {[%clk 0:00:44.2]} 23. Qxf4 {[%clk 0:02:11.1]}
23... Qb8 {[%clk 0:00:43.5]} 24. Qxb8+ {[%clk 0:01:49.7]} 24... Rxb8 {[%clk
0:00:44.4]} 25. Bxf5 {[%clk 0:01:50.1]} 25... gxf5 {[%clk 0:00:41.3]} 26. Rxd4
{[%clk 0:01:48.9]} 26... Rxb2 {[%clk 0:00:41.2]} 27. a4 {[%clk 0:01:49]} 27...
Rc8 {[%clk 0:00:40]} 28. Rf4 {[%clk 0:01:47.8]} 28... Rxc3 {[%clk 0:00:38.6]}
29. Rxf5 {[%clk 0:01:48.1]} 29... Ra2 {[%clk 0:00:35.5]} 30. Rd1 {[%clk
0:01:47.2]} 30... Rxa4 {[%clk 0:00:23.7]} 31. Rd7 {[%clk 0:01:43.1]} 31... b5
{[%clk 0:00:08.5]} 32. Rfxf7 {[%clk 0:01:42.4]} 32... b4 {[%clk 0:00:08.1]} 33.
Rg7+ {[%clk 0:01:42.5]} 33... Kf8 {[%clk 0:00:08.1]} 34. Rxh7 {[%clk 0:01:43]}
34... Kg8 {[%clk 0:00:08.4]} 35. Rdg7+ {[%clk 0:01:42.7]} 35... Kf8 {[%clk
0:00:08.4]} 36. Ra7 {[%clk 0:01:38.5]} 36... Kg8 {[%clk 0:00:08]} 37. Rhb7
{[%clk 0:01:38.4]} 37... Rc8 {[%clk 0:00:06]} 38. h4 {[%clk 0:01:37.8]} 38... a5
{[%clk 0:00:04.1]} 39. h5 {[%clk 0:01:37.3]} 39... Ra1+ {[%clk 0:00:02.9]} 40.
Kh2 {[%clk 0:01:37.2]} 40... Ra2 {[%clk 0:00:02]} 1-0

[Event "*** Titled Tuesday Blitz"]
[Site "Chess.com"]
[Date "2020.11.24"]
[Round "2"]
[White "Rud_Makarian"]
[Black "Angel_Hranitel_37"]
[Result "1-0"]
[WhiteElo "2756"]
[BlackElo "2493"]
[TimeControl "180+1"]
[EndTime "10:32:23 PST"]
[Termination "Rud_Makarian won by resignation"]

1. d4 {[%clk 0:02:56.6]} 1... Nf6 {[%clk 0:03:00.1]} 2. c4 {[%clk 0:02:56.6]}
2... e6 {[%clk 0:03:00.6]} 3. Nf3 {[%clk 0:02:56.8]} 3... Bb4+ {[%clk
0:03:00.1]} 4. Bd2 {[%clk 0:02:56.4]} 4... a5 {[%clk 0:03:00.4]} 5. g3 {[%clk
0:02:56.1]} 5... d6 {[%clk 0:02:58.8]} 6. Bg2 {[%clk 0:02:56.7]} 6... Nbd7
{[%clk 0:02:59.1]} 7. O-O {[%clk 0:02:57.1]} 7... e5 {[%clk 0:02:59.6]} 8. Nc3
{[%clk 0:02:56.9]} 8... O-O {[%clk 0:02:57.3]} 9. b3 {[%clk 0:02:55.3]} 9... c6
{[%clk 0:02:51.8]} 10. a3 {[%clk 0:02:54.7]} 10... Bxc3 {[%clk 0:02:51.6]} 11.
Bxc3 {[%clk 0:02:55.6]} 11... e4 {[%clk 0:02:50.7]} 12. Nd2 {[%clk 0:02:53.6]}
12... d5 {[%clk 0:02:51.1]} 13. b4 {[%clk 0:02:53.8]} 13... e3 {[%clk
0:02:43.5]} 14. fxe3 {[%clk 0:02:53.6]} 14... Ng4 {[%clk 0:02:41.7]} 15. Rf3
{[%clk 0:02:53.2]} 15... Re8 {[%clk 0:02:34.1]} 16. Nf1 {[%clk 0:02:37.1]} 16...
axb4 {[%clk 0:02:27.4]} 17. axb4 {[%clk 0:02:38]} 17... Rxa1 {[%clk 0:02:26.8]}
18. Qxa1 {[%clk 0:02:38.9]} 18... dxc4 {[%clk 0:02:26.2]} 19. h3 {[%clk
0:02:35]} 19... Ngf6 {[%clk 0:02:26.3]} 20. Nd2 {[%clk 0:02:35.5]} 20... Nb6
{[%clk 0:02:23.8]} 21. g4 {[%clk 0:02:00.3]} 21... Nbd5 {[%clk 0:02:22.9]} 22.
Nxc4 {[%clk 0:01:57.1]} 22... Nxc3 {[%clk 0:01:34.2]} 23. Qxc3 {[%clk
0:01:55.6]} 23... Nd5 {[%clk 0:01:35.1]} 24. Qd2 {[%clk 0:01:48.2]} 24... Qe7
{[%clk 0:01:19.3]} 25. e4 {[%clk 0:01:34.8]} 25... Nxb4 {[%clk 0:00:24.1]} 26.
e5 {[%clk 0:01:34.4]} 26... Be6 {[%clk 0:00:19]} 27. Nd6 {[%clk 0:01:33.7]}
27... c5 {[%clk 0:00:11.9]} 28. Nxe8 {[%clk 0:01:29.7]} 28... Qxe8 {[%clk
0:00:10.6]} 29. dxc5 {[%clk 0:01:30.3]} 29... Nc6 {[%clk 0:00:11.2]} 30. Rd3
{[%clk 0:01:27.5]} 30... Qe7 {[%clk 0:00:04.5]} 31. Bxc6 {[%clk 0:01:22.6]}
31... Qxc5+ {[%clk 0:00:05.2]} 32. e3 {[%clk 0:01:22.4]} 32... h5 {[%clk
0:00:04]} 33. Rd8+ {[%clk 0:01:22.7]} 33... Kh7 {[%clk 0:00:03.9]} 34. Be4+
{[%clk 0:01:23.6]} 34... g6 {[%clk 0:00:04.6]} 35. gxh5 {[%clk 0:01:24.1]} 35...
Qxe5 {[%clk 0:00:03.7]} 36. hxg6+ {[%clk 0:01:25]} 36... Kg7 {[%clk 0:00:04.4]}
37. Qd4 {[%clk 0:01:22.8]} 1-0

[Event "*** Titled Tuesday Blitz"]
[Site "Chess.com"]
[Date "2020.11.24"]
[Round "2"]
[White "PaulfromSPb"]
[Black "AbdAlAgathos"]
[Result "1-0"]
[WhiteElo "2669"]
[BlackElo "2367"]
[TimeControl "180+1"]
[EndTime "10:32:26 PST"]
[Termination "PaulfromSPb won on time"]

1. e4 {[%clk 0:03:00.9]} 1... e6 {[%clk 0:02:54.8]} 2. d4 {[%clk 0:03:00.1]}
2... d5 {[%clk 0:02:54.6]} 3. Nd2 {[%clk 0:03:00.7]} 3... Be7 {[%clk 0:02:53.3]}
4. Bd3 {[%clk 0:03:00.2]} 4... c5 {[%clk 0:02:51.5]} 5. exd5 {[%clk 0:02:59.2]}
5... exd5 {[%clk 0:02:50.2]} 6. dxc5 {[%clk 0:02:55.7]} 6... Nf6 {[%clk
0:02:49.6]} 7. Nb3 {[%clk 0:02:54.3]} 7... O-O {[%clk 0:02:45.6]} 8. Nf3 {[%clk
0:02:53.7]} 8... Nbd7 {[%clk 0:02:36.4]} 9. Be3 {[%clk 0:02:52.6]} 9... Qc7
{[%clk 0:02:23.2]} 10. O-O {[%clk 0:02:50.3]} 10... Nxc5 {[%clk 0:02:17.3]} 11.
Nxc5 {[%clk 0:02:49.5]} 11... Bxc5 {[%clk 0:02:18.2]} 12. Bxc5 {[%clk
0:02:48.1]} 12... Qxc5 {[%clk 0:02:19.1]} 13. h3 {[%clk 0:02:49]} 13... Ne4
{[%clk 0:02:10.1]} 14. c3 {[%clk 0:02:46.5]} 14... Bf5 {[%clk 0:02:05.9]} 15.
Nd4 {[%clk 0:02:45.4]} 15... Bg6 {[%clk 0:02:03.7]} 16. Re1 {[%clk 0:02:37.1]}
16... Rfe8 {[%clk 0:01:54.7]} 17. Qb3 {[%clk 0:02:32.4]} 17... Nd2 {[%clk
0:00:45.6]} 18. Qc2 {[%clk 0:02:26.8]} 18... Nc4 {[%clk 0:00:45.1]} 19. Bxg6
{[%clk 0:02:22.2]} 19... hxg6 {[%clk 0:00:46]} 20. b3 {[%clk 0:02:10]} 20... Nd6
{[%clk 0:00:44.9]} 21. Re3 {[%clk 0:02:08.2]} 21... Rxe3 {[%clk 0:00:42.3]} 22.
fxe3 {[%clk 0:02:09.1]} 22... Ne4 {[%clk 0:00:41.5]} 23. Rc1 {[%clk 0:02:08.2]}
23... Rc8 {[%clk 0:00:39.8]} 24. c4 {[%clk 0:02:03.8]} 24... Qe7 {[%clk
0:00:37.5]} 25. Qe2 {[%clk 0:02:01.5]} 25... Nd6 {[%clk 0:00:29.5]} 26. c5
{[%clk 0:01:57.8]} 26... b6 {[%clk 0:00:23.6]} 27. c6 {[%clk 0:01:49.2]} 27...
Ne4 {[%clk 0:00:19.3]} 28. Rf1 {[%clk 0:01:40.8]} 28... Nc5 {[%clk 0:00:17.8]}
29. Qf3 {[%clk 0:01:36.3]} 29... Ne4 {[%clk 0:00:11.6]} 30. Rd1 {[%clk
0:01:32.6]} 30... f6 {[%clk 0:00:10.1]} 31. Qg4 {[%clk 0:01:31.4]} 31... Qe8
{[%clk 0:00:08.8]} 32. b4 {[%clk 0:01:28.6]} 32... f5 {[%clk 0:00:08.7]} 33. Qf3
{[%clk 0:01:25.8]} 33... Qd8 {[%clk 0:00:06.2]} 34. b5 {[%clk 0:01:25.4]} 34...
Qd6 {[%clk 0:00:06.4]} 35. Ne2 {[%clk 0:01:20.5]} 35... Qxc6 {[%clk 0:00:06.2]}
36. bxc6 {[%clk 0:01:19.8]} 1-0

[Event "*** Titled Tuesday Blitz"]
[Site "Chess.com"]
[Date "2020.11.24"]
[Round "2"]
[White "bylavochka"]
[Black "GianmarcoVaR"]
[Result "0-1"]
[WhiteElo "2145"]
[BlackElo "2604"]
[TimeControl "180+1"]
[EndTime "10:32:30 PST"]
[Termination "GianmarcoVaR won by resignation"]

1. e4 {[%clk 0:03:00.9]} 1... c6 {[%clk 0:02:59.9]} 2. d4 {[%clk 0:02:52.5]}
2... d5 {[%clk 0:03:00.8]} 3. e5 {[%clk 0:02:50.6]} 3... Bf5 {[%clk 0:03:00.5]}
4. h4 {[%clk 0:02:50.6]} 4... h5 {[%clk 0:03:00.3]} 5. c4 {[%clk 0:02:50.7]}
5... e6 {[%clk 0:02:59.9]} 6. Nc3 {[%clk 0:02:49.3]} 6... Nd7 {[%clk 0:02:45.1]}
7. Nge2 {[%clk 0:02:46.6]} 7... Ne7 {[%clk 0:02:41.6]} 8. Ng3 {[%clk 0:02:45.8]}
8... Bg6 {[%clk 0:02:41.1]} 9. Be2 {[%clk 0:02:43.3]} 9... Nf5 {[%clk 0:02:39]}
10. Nxf5 {[%clk 0:02:41.7]} 10... Bxf5 {[%clk 0:02:39.6]} 11. Bg5 {[%clk
0:02:39.3]} 11... Be7 {[%clk 0:02:38.6]} 12. Qd2 {[%clk 0:02:37.4]} 12... f6
{[%clk 0:02:14.3]} 13. exf6 {[%clk 0:02:35.2]} 13... gxf6 {[%clk 0:02:15.2]} 14.
Be3 {[%clk 0:02:18.7]} 14... Bd6 {[%clk 0:01:47.4]} 15. a3 {[%clk 0:01:54.4]}
15... Qe7 {[%clk 0:01:44.3]} 16. c5 {[%clk 0:01:54.1]} 16... Bc7 {[%clk
0:01:43.8]} 17. b4 {[%clk 0:01:55]} 17... e5 {[%clk 0:01:42.4]} 18. O-O-O {[%clk
0:01:45.4]} 18... b6 {[%clk 0:01:14.7]} 19. b5 {[%clk 0:01:15.9]} 19... bxc5
{[%clk 0:01:14.4]} 20. bxc6 {[%clk 0:00:49.7]} 20... cxd4 {[%clk 0:01:14.6]} 21.
cxd7+ {[%clk 0:00:41]} 21... Kxd7 {[%clk 0:01:13.1]} 22. Bxd4 {[%clk 0:00:16.6]}
22... Qxa3+ {[%clk 0:01:09.8]} 23. Qb2 {[%clk 0:00:13.4]} 23... Qxb2+ {[%clk
0:01:10.2]} 24. Kxb2 {[%clk 0:00:14.3]} 24... exd4 {[%clk 0:01:10.3]} 25. Rxd4
{[%clk 0:00:14.3]} 25... Be4 {[%clk 0:00:59.9]} 26. Nxe4 {[%clk 0:00:13.9]}
26... Be5 {[%clk 0:01:00.5]} 27. Nc5+ {[%clk 0:00:08.9]} 27... Kc6 {[%clk
0:01:00.1]} 28. Nb3 {[%clk 0:00:09.3]} 28... Rab8 {[%clk 0:00:58.9]} 29. Rc1+
{[%clk 0:00:08.6]} 29... Kd6 {[%clk 0:00:59.3]} 30. Ka3 {[%clk 0:00:08.6]} 30...
Rxb3+ {[%clk 0:00:59.1]} 31. Kxb3 {[%clk 0:00:03.8]} 31... Bxd4 {[%clk 0:01:00]}
32. Ra1 {[%clk 0:00:04.3]} 32... Bxa1 {[%clk 0:00:59.4]} 0-1